fUSD/lending_fUSD_20250207
["ID","MTS","AMOUNT","RATE_DAILY","PERIOD"]
[352093235,1738944647051,-1729.31,0.0001649,2]
[352093236,1738944647060,-1211.7,0.0001649,2]
[352093238,1738944647070,-1610.05,0.0001649,2]
[352093240,1738944647079,-645.5,0.0001649,2]
[352093242,1738944647090,-807.98,0.0001649,2]
[352093244,1738944647100,-2312.8,0.0001649,2]
[352093246,1738944647110,-878.81,0.0001649,2]
[352093248,1738944647119,-500.0,0.0001649,2]
[352093251,1738944647129,-500.0,0.0001649,2]
[352093252,1738944647140,-575.63,0.0001649,2]
[352093254,1738944647150,-500.0,0.0001649,2]
[352093257,1738944647160,-500.0,0.0001649,2]
[352093259,1738944647171,-500.0,0.0001649,2]
[352093260,1738944647181,-987.54,0.0001649,2]
[352093262,1738944647191,-1025.11,0.0001649,2]
[352093264,1738944647200,-919.34,0.0001649,2]
[352093266,1738944647210,-833.84,0.0001649,2]
[352093268,1738944647219,-522.96,0.0001649,2]
[352093270,1738944647228,-945.48,0.0001649,2]
[352093272,1738944647238,-1966.11,0.0001649,2]
[352093274,1738944647248,-500.0,0.0001649,2]
[352093276,1738944647258,-3723.21,0.0001649,2]
[352093278,1738944647267,-888.71,0.0001649,2]
[352093280,1738944647276,-973.3,0.0001649,2]
[352093282,1738944647286,-947.9,0.0001649,2]
[352093284,1738944647295,-621.06,0.0001649,2]
[352093286,1738944647304,-1706.82,0.0001649,2]
[352093288,1738944647313,-500.0,0.0001649,2]
[352093290,1738944647323,-663.29,0.0001649,2]
[352093292,1738944647332,-866.64,0.0001649,2]
[352093294,1738944647342,-1046320.55357712,0.0001649,2]
[352093297,1738944647362,-679.24772729,0.0001649,2]
[352093300,1738944647378,-506.6044727,0.0001649,2]
[352093367,1738944648149,1000.0,8.851e-05,2]
[352093379,1738944648272,-500.0,0.00016438,2]
[352093381,1738944648281,-500.0,0.00016438,2]
[352093383,1738944648291,-500.0,0.00016438,2]
[352093385,1738944648301,-500.0,0.00016438,2]
[352093387,1738944648311,-589.51,0.00016438,2]
[352093389,1738944648320,-90384.81807968,0.0001649,2]
[352093393,1738944648348,-420.18691896,0.0001649,2]
[352093396,1738944648371,-810968.46660446,0.0001649,2]
[352093398,1738944648382,-300.0,0.00016491,2]
[352093400,1738944648392,-300.0,0.00016491,2]
[352093402,1738944648402,-300.0,0.00016491,2]
[352093404,1738944648412,-300.0,0.00016491,2]
[352093406,1738944648421,-300.0,0.00016491,2]
[352093408,1738944648431,-300.0,0.00016491,2]
[352093410,1738944648440,-300.0,0.00016491,2]
[352093412,1738944648450,-404.21477327,0.00016491,2]
[352093414,1738944648459,-258.3123091,0.00016491,5]
[352093416,1738944648468,-1526.87,0.00016491,2]
[352093418,1738944648478,-253.12517652,0.00016491,2]
[352093420,1738944648487,-1000.0,0.00016491,2]
[352093422,1738944648498,-500.0,0.00016491,2]
[352093424,1738944648509,-500.0,0.00016491,2]
[352093426,1738944648519,-1208.86,0.00016491,2]
[352093428,1738944648528,-939.26,0.00016491,2]
[352093430,1738944648538,-500.0,0.00016491,2]
[352093432,1738944648548,-500.0,0.00016491,2]
[352093434,1738944648557,-372.89,0.00016492,2]
[352093436,1738944648567,-61225.22764135,0.00016492,2]
[352093438,1738944648576,-5957734.07274561,0.00016492,9]
[352093695,1738944676150,266.5305,8.699e-05,2]
[352093696,1738944690798,150.0,0.00019676,120]
[352093697,1738944692773,500.0,8.851e-05,2]
[352093698,1738944700705,2500.0,8.851e-05,2]
[352093699,1738944727191,2562.37544813,8.836e-05,2]
[352093700,1738944810760,150.0,0.00019418,120]
[352093701,1738945081305,498.0,0.0002,120]
[352093702,1738945094273,398.0,0.0001712,90]
[352093830,1738945762077,-190.294539,8.612e-05,2]
[352093831,1738945762100,-860.2351,8.699e-05,2]
[352093832,1738945762122,-312.5143,8.699e-05,2]
[352093833,1738945762143,-8636.956061,8.699e-05,2]
[352093834,1738945762877,-10000.0,8.699e-05,2]
[352093835,1738945763613,-10000.0,8.699e-05,2]
[352093836,1738945764200,-2387.755039,8.699e-05,2]
[352093837,1738945764221,-3880.8491,8.699e-05,2]
[352093838,1738945764242,-721.73025651,8.699e-05,2]
[352093839,1738945764263,-3009.66560449,8.699e-05,2]
[352093840,1738945764863,-541.81637217,8.699e-05,2]
[352093841,1738945764884,-3241.70265187,8.836e-05,2]
[352093842,1738945764907,-3814.8332,8.836e-05,2]
[352093843,1738945764929,-500.0,8.851e-05,2]
[352093844,1738945764951,-1000.0,8.851e-05,2]
[352093845,1738945764973,-901.64777596,8.851e-05,2]
[352093846,1738945765846,-1598.35222404,8.851e-05,2]
[352093847,1738945765878,-8401.64777596,8.973e-05,2]
[352093865,1738945832092,-2239.7793,8.256e-05,2]
[352093866,1738945832103,-785.0279,8.836e-05,2]
[352093867,1738945832112,-178.95442404,8.973e-05,2]
[352093868,1738945832122,-12713.99808546,9.323e-05,2]
[352093869,1738945832186,-1283.52391354,9.323e-05,2]
[352093870,1738945832197,-42441.73067405,9.37e-05,2]
[352093871,1738945832208,-500.0,9.973e-05,2]
[352093872,1738945832218,-150.0,9.998e-05,2]
[352093873,1738945832228,-625.41492555,9.999e-05,2]
[352093874,1738945832238,-500.0,9.999e-05,2]
[352093875,1738945832248,-500.0,9.999e-05,2]
[352093876,1738945832258,-500.0,9.999e-05,2]
[352093877,1738945832268,-500.0,9.999e-05,2]
[352093878,1738945832278,-500.0,9.999e-05,2]
[352093879,1738945832287,-500.0,9.999e-05,2]
[352093880,1738945832296,-500.0,9.999e-05,2]
[352093881,1738945832306,-603.26334136,9.999e-05,2]
[352093882,1738945832316,-500.0,9.999e-05,2]
[352093883,1738945832325,-234912.5947176,0.0001,2]
[352093884,1738945832335,-161.60840774,0.0001,2]
[352093885,1738945832345,-2843.50787231,0.0001,2]
[352093886,1738945832355,-308460.18744192,0.0001,2]
[352093887,1738945832476,-456.7858882,0.0001,2]
[352093888,1738945832489,-489.17253924,0.0001,2]
[352093889,1738945832501,-797.7907638,0.0001,2]
[352093890,1738945832513,-4137.13729955,0.0001,2]
[352093891,1738945832525,-351432.87632621,0.0001,2]
[352093892,1738945832541,-419.19337439,0.0001,2]
[352093893,1738945832553,-20773.98864442,0.0001,2]
[352093894,1738945832573,-2266.51154028,0.0001,2]
[352093895,1738945832584,-1383.49999993,0.0001,2]
[352093896,1738945832595,-365.9440005,0.0001,2]
[352094375,1738945838475,-207226.56970065,0.0001,2]
[352094378,1738945838494,-13781.40426998,0.0001,2]
[352094380,1738945838504,-402.02831949,0.0001,2]
[352094385,1738945838544,-10440.50422516,0.0001,2]
[352094542,1738945840166,-790.04694,0.0001,2]
[352094553,1738945840291,-271.64,0.0001,2]
[352094586,1738945840599,-78943.58186653,0.0001,2]
[352094590,1738945840621,-2944.96334079,0.0001,2]
[352094919,1738945846059,-341.95908273,0.0001,2]
[352094937,1738945846192,-1243.39,0.0001,2]
[352094944,1738945846257,-9820.98906001,0.0001,2]
[352096859,1738946972830,-947.77,8.232e-05,2]
[352096860,1738946972854,-1852.42,8.434e-05,2]
[352096861,1738946972875,-438.17,8.488e-05,2]
[352096862,1738946972898,-174.36,8.616e-05,2]
[352096863,1738946972918,-1311.4611,8.699e-05,2]
[352096864,1738946972939,-998.0,8.8e-05,2]
[352096865,1738946972959,-1500.0,8.805e-05,2]
[352096866,1738946972980,-150.0,8.822e-05,2]
[352096867,1738946973000,-300.0,8.827e-05,2]
[352096868,1738946973022,-2327.8189,8.828e-05,2]
[352096869,1738946973347,-10000.0,8.828e-05,2]
[352096870,1738946973899,-5648.3211,8.828e-05,2]
[352096871,1738946973922,-150.0,8.835e-05,2]
[352096872,1738946973945,-4201.6789,8.836e-05,2]
[352096873,1738946974441,-4008.301,8.836e-05,2]
[352096874,1738946974468,-3555.3237,8.836e-05,2]
[352096875,1738946974491,-2436.3753,8.836e-05,2]
[352096876,1738946974946,-736.2567,8.836e-05,2]
[352096877,1738946974969,-4537.471,8.851e-05,2]
[352096878,1738946974993,-187.306,8.851e-05,2]
[352096879,1738946975016,-500.0,8.851e-05,2]
[352096880,1738946975039,-1000.0,8.851e-05,2]
[352096881,1738946975063,-2500.0,8.851e-05,2]
[352096882,1738946975087,-446.3,8.953e-05,2]
[352096883,1738946975109,-92.6663,8.972e-05,2]
[352096884,1738946975495,-576.81253399,8.972e-05,2]
[352096885,1738946975516,-1000.0,8.972e-05,2]
[352096886,1738946975538,-5286.75982956,8.972e-05,2]
[352096887,1738946975559,-3136.42763645,8.973e-05,2]
[352096888,1738946976006,-10000.0,8.973e-05,2]
[352096889,1738946976560,-10000.0,8.973e-05,2]
[352096890,1738946977298,-10000.0,8.973e-05,2]
[352096891,1738946979507,-2402.97536355,8.973e-05,2]
[352096892,1738946979530,-5000.0,8.973e-05,2]
[352096897,1738947006989,2500.0,8.851e-05,2]
[352096899,1738947016405,97.02463645,8.219e-05,2]
[352096913,1738947032328,-934.13536355,8.219e-05,2]
[352096914,1738947032338,-3059.09,9.06e-05,2]
[352096915,1738947032348,-250.0,9.078e-05,2]
[352096916,1738947032357,-75.21842618,9.205e-05,2]
[352096917,1738947032499,-477.3447327,9.205e-05,2]
[352096918,1738947032598,-1372.52500003,9.205e-05,2]
[352096919,1738947032617,-569.70184109,9.205e-05,2]
[352096921,1738947032626,-300.0,9.253e-05,2]
[352096923,1738947032637,-23900.0,9.254e-05,2]
[352096924,1738947032646,-1031.98,9.278e-05,2]
[352096926,1738947032655,-256.19,9.396e-05,2]
[352096927,1738947032665,-1000.0,9.414e-05,2]
[352096928,1738947032674,-1172.52,9.466e-05,2]
[352096929,1738947032683,-4115.16,9.534e-05,2]
[352096930,1738947032692,-500.0,9.562e-05,2]
[352096931,1738947032701,-255.0,9.718e-05,2]
[352096932,1738947032711,-400.0,9.9e-05,3]
[352096934,1738947032721,-656.49389049,9.936e-05,2]
[352096935,1738947032730,-500.0,9.999e-05,2]
[352096936,1738947032739,-500.0,9.999e-05,2]
[352096937,1738947032748,-285.28356143,9.999e-05,2]
[352096938,1738947032757,-500.0,9.999e-05,2]
[352096939,1738947032766,-374.552,9.999e-05,2]
[352096940,1738947032775,-500.0,9.999e-05,2]
[352096941,1738947032784,-9915.82287553,0.0001,2]
[352096952,1738947038175,-529.47807039,0.0001,2]
[352096953,1738947038241,-69014.79999999,0.0001,2]
[352096954,1738947038253,-475.3042604,0.0001,2]
[352096955,1738947038264,-17801.16312787,0.0001,2]
[352096956,1738947038276,-452.32910566,0.0001,2]
[352096957,1738947038287,-378.37856411,0.0001,2]
[352096958,1738947038306,-615.41824361,0.0001,2]
[352096959,1738947038317,-135764.38181543,0.0001,2]
[352096960,1738947038329,-334.91366441,0.0001,2]
[352096962,1738947038451,-538.46190833,0.0001,2]
[352096964,1738947038463,-988.0,0.0001,2]
[352097158,1738947040315,-2757.921871,0.0001,2]
[352097160,1738947040326,-896.82497611,0.0001,2]
[352097162,1738947040337,-383.57266039,0.0001,2]
[352097165,1738947040349,-5620.00299894,0.0001,2]
[352097167,1738947040360,-23944.91226869,0.0001,2]
[352097170,1738947040380,-512.87640715,0.0001,2]
[352097172,1738947040394,-740.5496385,0.0001,2]
[352097174,1738947040562,-4381.25527597,0.0001,2]
[352097175,1738947040574,-1279.0250746,0.0001,2]
[352097179,1738947040598,-4685.73457358,0.0001,2]
[352097181,1738947040609,-1177.86146382,0.0001,2]
[352097183,1738947040620,-1631.14693322,0.0001,2]
[352097219,1738947040949,-1353.23790222,0.0001,2]
[352097226,1738947041007,-811634.83641108,0.0001,2]
[352097228,1738947041017,-210.83924701,0.0001,2]
[352097230,1738947041026,-4000.0,0.0001,2]
[352097232,1738947041035,-900.0,0.0001,3]
[352097234,1738947041044,-112333.52597986,0.0001,2]
[352097236,1738947041053,-2827.73302881,0.0001,2]
[352097238,1738947041062,-505.04367816,0.0001,2]
[352097240,1738947041071,-641.45780751,0.00010036,2]
[352097242,1738947041080,-174.36,0.00010038,2]
[352097244,1738947041089,-2000.0,0.00010059,2]
[352097246,1738947041098,-168.39,0.00010115,2]
[352097248,1738947041107,-3814.34,0.00010137,2]
[352097250,1738947041116,-151.51,0.00010137,2]
[352097252,1738947041125,-262.22,0.00010138,2]
[352097254,1738947041134,-420.0,0.00010178,2]
[352097256,1738947041145,-1031.16,0.00010437,2]
[352097258,1738947041154,-169.8,0.00010485,2]
[352097260,1738947041163,-1000.0,0.0001059,2]
[352097262,1738947041172,-195.0,0.0001069,2]
[352097264,1738947041181,-257.13665506,0.000107,2]
[352097266,1738947041191,-770.83958325,0.000108,2]
[352097268,1738947041201,-1400.0,0.000108,3]
[352097270,1738947041210,-155.38476656,0.00010849,2]
[352097272,1738947041219,-153.78535812,0.00010849,2]
[352097274,1738947041228,-1900.0,0.000109,3]
[352097276,1738947041237,-166.86077259,0.000109,2]
[352097278,1738947041246,-166.86077253,0.000109,2]
[352097280,1738947041256,-504.44,0.00010959,2]
[352097282,1738947041265,-150.0,0.00010959,2]
[352097284,1738947041274,-6466.42,0.00010959,2]
[352097286,1738947041284,-169.8,0.00011062,2]
[352097288,1738947041293,-641.45780748,0.00011097,2]
[352097290,1738947041302,-713.2599404,0.00011098,3]
[352097292,1738947041311,-1693659.33529415,0.00011098,3]
[352097294,1738947041320,-172.28762932,0.00011099,2]
[352097296,1738947041329,-587.0,0.00011196,2]
[352097298,1738947041339,-262.22,0.00011405,2]
[352097299,1738947041348,-2751.0,0.00011507,2]
[352097300,1738947041357,-656.49389047,0.00011552,2]
[352097302,1738947041367,-169.8,0.00011639,2]
[352097304,1738947041376,-166.86077253,0.00011757,2]
[352097306,1738947041386,-1000.0,0.00011767,2]
[352097308,1738947041397,-4700.0,0.0001178,2]
[352097310,1738947041406,-641.45780748,0.00012157,2]
[352097312,1738947041416,-169.8,0.00012216,2]
[352097314,1738947041425,-823.0,0.00012315,2]
[352097316,1738947041434,-1031.16,0.00012654,2]
[352097318,1738947041443,-262.22,0.00012672,2]
[352097320,1738947041452,-166.86077253,0.00012686,2]
[352097322,1738947041461,-2494.79,0.00012887,2]
[352097324,1738947041471,-1000.0,0.00012944,2]
[352097327,1738947041484,-4700.0,0.0001315,2]
[352097329,1738947041498,-656.49389047,0.00013168,2]
[352097331,1738947041507,-641.45780748,0.00013218,2]
[352097332,1738947041517,-317.0,0.00013547,2]
[352097334,1738947041526,-166.86077253,0.00013614,2]
[352097337,1738947041538,-386.12,0.000137,2]
[352097339,1738947041547,-386.12,0.000137,2]
[352097341,1738947041556,-601.15770005,0.00013778,2]
[352097343,1738947041567,-1000.0,0.000139,2]
[352097345,1738947041576,-262.22,0.00013939,2]
[352097346,1738947041586,-877.18,0.00014027,2]
[352097348,1738947041595,-1000.0,0.00014121,2]
[352097350,1738947041605,-358.09,0.00014159,2]
[352097352,1738947041616,-438.66,0.00014192,2]
[352097355,1738947041625,-150.0,0.00014192,2]
[352097357,1738947041635,-150.0,0.00014192,2]
[352097359,1738947041646,-438.66,0.00014192,2]
[352097361,1738947041656,-438.66,0.00014192,2]
[352097363,1738947041665,-438.66,0.00014192,2]
[352097365,1738947041675,-438.66,0.00014192,2]
[352097367,1738947041684,-641.45780748,0.00014279,2]
[352097369,1738947041694,-2439.0,0.00014331,2]
[352097371,1738947041703,-1385.67232555,0.00014376,2]
[352097373,1738947041713,-1059.0,0.00014467,2]
[352097374,1738947041722,-350.49,0.00014508,2]
[352097377,1738947041732,-350.49,0.00014512,2]
[352097378,1738947041741,-350.49,0.00014516,2]
[352097380,1738947041750,-350.49,0.0001452,2]
[352097382,1738947041760,-4700.0,0.0001452,2]
[352097385,1738947041769,-350.49,0.00014524,2]
[352097386,1738947041778,-350.49,0.00014528,2]
[352097389,1738947041788,-350.49,0.00014531,2]
[352097391,1738947041797,-350.49,0.00014535,2]
[352097392,1738947041806,-350.49,0.00014539,2]
[352097395,1738947041817,-350.49,0.00014543,2]
[352097397,1738947041826,-166.86077253,0.00014543,2]
[352097399,1738947041835,-350.49,0.00014547,2]
[352097401,1738947041845,-350.49,0.0001455,2]
[352097403,1738947041855,-350.49,0.00014554,2]
[352097405,1738947041864,-350.49,0.00014558,2]
[352097407,1738947041873,-350.49,0.00014562,2]
[352097409,1738947041882,-350.49,0.00014566,2]
[352097411,1738947041893,-350.49,0.00014569,2]
[352097413,1738947041903,-350.49,0.00014573,2]
[352097415,1738947041912,-350.49,0.00014577,2]
[352097417,1738947041922,-350.49,0.00014581,2]
[352097419,1738947041931,-656.49389047,0.00014784,2]
[352097421,1738947041940,-1031.16,0.00014872,2]
[352097423,1738947041949,-4000.0,0.00015,2]
[352097425,1738947041958,-999.0,0.00015068,2]
[352097427,1738947041967,-420.66,0.00015096,2]
[352097429,1738947041976,-20029.22285067,0.000151,2]
[352097431,1738947041986,-262.22,0.00015206,2]
[352097433,1738947041995,-641.45780748,0.00015339,2]
[352097435,1738947042004,-166.86077253,0.00015471,2]
[352097437,1738947042013,-970.0,0.000155,2]
[352097439,1738947042022,-4700.0,0.0001589,2]
[352097441,1738947042031,-2400.0,0.000159,5]
[352097443,1738947042040,-358.09,0.00015929,2]
[352097445,1738947042049,-13333.0,0.00016,7]
[352097447,1738947042058,-1053.4624464,0.00016162,2]
[352097448,1738947042067,-500.0,0.00016164,2]
[352097450,1738947042077,-500.0,0.00016164,2]
[352097452,1738947042088,-897.5,0.00016227,2]
[352097454,1738947042098,-323095.89138774,0.0001629,2]
[352097456,1738947042107,-843.19730691,0.00016338,2]
[352097459,1738947042117,-16983.54717124,0.00016338,2]
[352097460,1738947042126,-843.19730689,0.00016369,2]
[352097462,1738947042135,-71459.06914043,0.000164,2]
[352097464,1738947042147,-400.0,0.000164,2]
[352097466,1738947042156,-400.0,0.000164,3]
[352097468,1738947042165,-9881.0,0.000164,2]
[352097470,1738947042174,-641.45780748,0.000164,2]
[352097472,1738947042183,-656.49389047,0.000164,2]
[352097474,1738947042193,-166.86077253,0.000164,2]
[352097476,1738947042202,-843.19730689,0.000164,2]
[352097478,1738947042211,-563.64,0.00016437,2]
[352097480,1738947042221,-300.0,0.00016437,2]
[352097482,1738947042230,-300.0,0.00016437,2]
[352097484,1738947042240,-1056.665165,0.00016438,2]
[352097486,1738947042250,-1000.512824,0.00016438,2]
[352097488,1738947042259,-160.439542,0.00016438,2]
[352097490,1738947042268,-161.168306,0.00016438,2]
[352097492,1738947042277,-151.665853,0.00016438,2]
[352097494,1738947042286,-151.66585,0.00016438,2]
[352097496,1738947042296,-161.168297,0.00016438,2]
[352097498,1738947042305,-161.168298,0.00016438,2]
[352097500,1738947042314,-151.66585,0.00016438,2]
[352097502,1738947042323,-161.168297,0.00016438,2]
[352097504,1738947042332,-151.66585,0.00016438,2]
[352097506,1738947042342,-161.168298,0.00016438,2]
[352097508,1738947042351,-151.66585,0.00016438,2]
[352097510,1738947042360,-161.168297,0.00016438,2]
[352097512,1738947042369,-151.66585,0.00016438,2]
[352097514,1738947042378,-161.168298,0.00016438,2]
[352097516,1738947042388,-151.66585,0.00016438,2]
[352097518,1738947042399,-155.740945,0.00016438,2]
[352097520,1738947042408,-151.66585,0.00016438,2]
[352097522,1738947042418,-500.0,0.00016438,2]
[352097524,1738947042427,-500.0,0.00016438,2]
[352097526,1738947042436,-500.0,0.00016438,2]
[352097528,1738947042445,-582.22519759,0.00016438,2]
[352097530,1738947042454,-502.5936759,0.00016438,2]
[352097532,1738947042463,-500.0,0.00016438,2]
[352097534,1738947042472,-161.168297,0.00016438,2]
[352097536,1738947042486,-503.97179342,0.00016438,2]
[352097538,1738947042496,-503.19948657,0.00016438,2]
[352097540,1738947042506,-502.40463909,0.00016438,2]
[352097542,1738947042515,-500.0,0.00016438,2]
[352097544,1738947042525,-500.71437101,0.00016438,2]
[352097546,1738947042534,-151.66585,0.00016438,2]
[352097548,1738947042543,-508.70209635,0.00016438,2]
[352097550,1738947042552,-500.0,0.00016438,2]
[352097552,1738947042563,-500.0,0.00016438,2]
[352097554,1738947042572,-161.168299,0.00016438,2]
[352097556,1738947042582,-501.13611062,0.00016438,2]
[352097558,1738947042591,-294.88174852,0.00016438,2]
[352097560,1738947042600,-151.66585,0.00016438,2]
[352097562,1738947042610,-161.168297,0.00016438,2]
[352097564,1738947042619,-500.0,0.00016438,2]
[352097566,1738947042628,-151.66585,0.00016438,2]
[352097568,1738947042638,-634.44,0.00016438,2]
[352097570,1738947042649,-489.24992618,0.00016438,2]
[352097573,1738947042659,-510.89973778,0.00016438,2]
[352097575,1738947042668,-201.90276561,0.00016438,2]
[352097576,1738947042678,-200.98675695,0.00016438,2]
[352097579,1738947042688,-500.0,0.00016438,2]
[352097581,1738947042698,-500.0,0.00016438,2]
[352097582,1738947042707,-173.810256,0.00016438,2]
[352097584,1738947042716,-500.0,0.00016438,2]
[352097586,1738947042726,-500.0,0.00016438,2]
[352097589,1738947042736,-500.0,0.00016438,2]
[352097591,1738947042745,-500.0,0.00016438,2]
[352097593,1738947042755,-151.66585,0.00016438,2]
[352097595,1738947042765,-155.740945,0.00016438,2]
[352097597,1738947042774,-500.0,0.00016438,2]
[352097599,1738947042784,-500.0,0.00016438,2]
[352097601,1738947042794,-271.86391101,0.00016438,2]
[352097614,1738947042921,-500.80335089,0.00016438,2]
[352097616,1738947042932,-500.0,0.00016438,2]
[352097618,1738947042942,-161.168297,0.00016438,2]
[352097619,1738947042951,-500.0,0.00016438,2]
[352097621,1738947042960,-151.66585,0.00016438,2]
[352097623,1738947042970,-500.0,0.00016438,2]
[352097625,1738947042979,-500.0,0.00016438,2]
[352097628,1738947042990,-500.0,0.00016438,2]
[352097629,1738947042999,-553.7148991,0.00016438,2]
[352097631,1738947043008,-500.0,0.00016438,2]
[352097633,1738947043017,-500.0,0.00016438,2]
[352097635,1738947043027,-500.0,0.00016438,2]
[352097637,1738947043037,-161.168298,0.00016438,2]
[352097639,1738947043046,-500.0,0.00016438,2]
[352097641,1738947043056,-500.0,0.00016438,2]
[352097643,1738947043066,-151.66585,0.00016438,2]
[352097645,1738947043076,-500.0,0.00016438,2]
[352097647,1738947043087,-500.0,0.00016438,2]
[352097649,1738947043097,-500.0,0.00016438,2]
[352097651,1738947043107,-500.0,0.00016438,2]
[352097653,1738947043118,-505.67811643,0.00016438,2]
[352097655,1738947043128,-500.0,0.00016438,2]
[352097657,1738947043138,-500.0,0.00016438,2]
[352097659,1738947043151,-500.0,0.00016438,2]
[352097661,1738947043162,-599.9290566,0.00016438,2]
[352097664,1738947043172,-161.168297,0.00016438,2]
[352097667,1738947043182,-500.0,0.00016438,2]
[352097670,1738947043192,-500.0,0.00016438,2]
[352097672,1738947043203,-500.0,0.00016438,2]
[352097674,1738947043212,-500.0,0.00016438,2]
[352097676,1738947043222,-151.66585,0.00016438,2]
[352097678,1738947043231,-500.0,0.00016438,2]
[352097680,1738947043241,-164.38,0.00016438,2]
[352097682,1738947043251,-500.0,0.00016438,2]
[352097684,1738947043261,-500.0,0.00016438,2]
[352097686,1738947043271,-500.0,0.00016438,2]
[352097689,1738947043280,-500.0,0.00016438,2]
[352097692,1738947043290,-500.0,0.00016438,2]
[352097694,1738947043300,-500.0,0.00016438,2]
[352097696,1738947043310,-500.0,0.00016438,2]
[352097698,1738947043320,-500.0,0.00016438,2]
[352097700,1738947043329,-500.0,0.00016438,2]
[352097702,1738947043339,-500.0,0.00016438,2]
[352097704,1738947043348,-500.0,0.00016438,2]
[352097706,1738947043357,-500.0,0.00016438,2]
[352097708,1738947043366,-500.0,0.00016438,2]
[352097710,1738947043376,-604.26,0.00016438,2]
[352097712,1738947043385,-494.14673392,0.00016438,2]
[352097714,1738947043397,-500.0,0.00016438,2]
[352097716,1738947043407,-500.0,0.00016438,2]
[352097718,1738947043416,-161.168298,0.00016438,2]
[352097720,1738947043426,-500.0,0.00016438,2]
[352097722,1738947043436,-500.0,0.00016438,2]
[352097724,1738947043445,-500.0,0.00016438,2]
[352097726,1738947043454,-500.0,0.00016438,2]
[352097728,1738947043465,-562.47276291,0.00016438,2]
[352097730,1738947043474,-569.62590213,0.00016438,2]
[352097732,1738947043484,-500.0,0.00016438,2]
[352097733,1738947043496,-500.0,0.00016438,2]
[352097735,1738947043505,-500.0,0.00016438,2]
[352097737,1738947043514,-500.0,0.00016438,2]
[352097739,1738947043523,-500.0,0.00016438,2]
[352097741,1738947043533,-500.0,0.00016438,2]
[352097743,1738947043542,-500.0,0.00016438,2]
[352097745,1738947043551,-500.0,0.00016438,2]
[352097747,1738947043560,-500.0,0.00016438,2]
[352097749,1738947043571,-500.0,0.00016438,2]
[352097751,1738947043581,-500.0,0.00016438,2]
[352097753,1738947043590,-500.0,0.00016438,2]
[352097755,1738947043599,-150.53,0.00016438,2]
[352097757,1738947043608,-500.0,0.00016438,2]
[352097759,1738947043617,-500.0,0.00016438,2]
[352097761,1738947043626,-500.0,0.00016438,2]
[352097762,1738947043636,-500.0,0.00016438,2]
[352097763,1738947043648,-500.0,0.00016438,2]
[352097764,1738947043657,-567.86977101,0.00016438,2]
[352097765,1738947043667,-500.0,0.00016438,2]
[352097766,1738947043676,-500.0,0.00016438,2]
[352097767,1738947043685,-500.0,0.00016438,2]
[352097768,1738947043695,-501.76550144,0.00016438,2]
[352097769,1738947043704,-500.0,0.00016438,2]
[352097770,1738947043714,-500.0,0.00016438,2]
[352097771,1738947043723,-336.38727438,0.00016438,2]
[352097772,1738947043734,-283.82,0.00016438,2]
[352097773,1738947043743,-500.0,0.00016438,2]
[352097774,1738947043752,-539.9,0.00016438,2]
[352097775,1738947043761,-500.0,0.00016438,2]
[352097777,1738947043771,-500.0,0.00016438,2]
[352097779,1738947043781,-500.0,0.00016438,2]
[352097781,1738947043791,-151.665853,0.00016438,2]
[352097783,1738947043800,-228.70093187,0.00016438,2]
[352097785,1738947043810,-1381.01,0.00016438,2]
[352097787,1738947043819,-500.0,0.00016438,2]
[352097789,1738947043828,-500.0,0.00016438,2]